fUSD/lending_fUSD_20250105
["ID","MTS","AMOUNT","RATE_DAILY","PERIOD"]
[347726332,1736082648272,-1150.32,8.219e-05,2]
[347726333,1736082648281,-4388.8,8.219e-05,2]
[347726334,1736082648291,-500.0,8.219e-05,2]
[347726335,1736082648301,-500.0,8.219e-05,2]
[347726336,1736082648310,-500.0,8.219e-05,2]
[347726337,1736082648319,-1762.83,8.219e-05,2]
[347726338,1736082648332,-500.0,8.219e-05,2]
[347726339,1736082648341,-1347.02,8.219e-05,2]
[347726340,1736082648351,-3180.66,8.219e-05,2]
[347726341,1736082648360,-3530.82,8.219e-05,2]
[347726342,1736082648371,-1134.4,8.219e-05,2]
[347726343,1736082648380,-500.0,8.219e-05,2]
[347726344,1736082648391,-1942.81,8.219e-05,2]
[347726345,1736082648400,-515.45592512,8.219e-05,2]
[347726346,1736082648411,-566.37,8.219e-05,2]
[347726347,1736082648421,-703.04,8.219e-05,2]
[347726348,1736082648430,-1975.63,8.219e-05,2]
[347726349,1736082648440,-1927.58,8.219e-05,2]
[347726350,1736082648449,-1423.66,8.219e-05,2]
[347726351,1736082648459,-3443.24,8.219e-05,2]
[347726352,1736082648469,-1491.68,8.219e-05,2]
[347726353,1736082648478,-6088.65,8.219e-05,2]
[347726354,1736082648486,-6280.51,8.219e-05,2]
[347726355,1736082648497,-2628.65,8.219e-05,2]
[347726356,1736082648506,-500.0,8.219e-05,2]
[347726357,1736082648516,-500.0,8.219e-05,2]
[347726358,1736082648526,-1405.96,8.219e-05,2]
[347726359,1736082648536,-500.0,8.219e-05,2]
[347726360,1736082648546,-500.0,8.219e-05,2]
[347726361,1736082648556,-500.0,8.219e-05,2]
[347726362,1736082648566,-3194.81,8.219e-05,2]
[347726363,1736082648575,-4092.33,8.219e-05,2]
[347726364,1736082648585,-500.0,8.219e-05,2]
[347726365,1736082648595,-1150.2,8.219e-05,2]
[347726366,1736082648605,-500.0,8.219e-05,2]
[347726367,1736082648614,-500.0,8.219e-05,2]
[347726368,1736082648624,-500.0,8.219e-05,2]
[347726369,1736082648634,-982.05,8.219e-05,2]
[347726370,1736082648644,-5514.11,8.219e-05,2]
[347726371,1736082648654,-500.0,8.219e-05,2]
[347726372,1736082648664,-500.0,8.219e-05,2]
[347726373,1736082648673,-1721.41,8.219e-05,2]
[347726374,1736082648683,-500.0,8.219e-05,2]
[347726375,1736082648693,-214.25091213,8.219e-05,2]
[347726376,1736082648702,-500.0,8.219e-05,2]
[347726377,1736082648712,-500.0,8.219e-05,2]
[347726378,1736082648722,-743.09,8.219e-05,2]
[347726379,1736082648731,-649.84,8.219e-05,2]
[347726380,1736082648741,-880.04,8.219e-05,2]
[347726381,1736082648751,-4692.35,8.219e-05,2]
[347726382,1736082648760,-4692.35,8.219e-05,2]
[347726383,1736082648770,-500.0,8.219e-05,2]
[347726384,1736082648779,-735.18,8.219e-05,2]
[347726385,1736082648789,-5015.32,8.219e-05,2]
[347726386,1736082648798,-500.0,8.219e-05,2]
[347726387,1736082648808,-5303.79,8.219e-05,2]
[347726388,1736082648817,-2527.43,8.219e-05,2]
[347726389,1736082648827,-500.0,8.219e-05,2]
[347726390,1736082648837,-608.79,8.219e-05,2]
[347726391,1736082648848,-500.0,8.219e-05,2]
[347726392,1736082648858,-1802.18,8.219e-05,2]
[347726393,1736082648868,-2659.02,8.219e-05,2]
[347726394,1736082648877,-1084.28,8.219e-05,2]
[347726395,1736082648887,-500.0,8.219e-05,2]
[347726396,1736082648897,-500.0,8.219e-05,2]
[347726397,1736082648906,-2509.06,8.219e-05,2]
[347726398,1736082648916,-500.0,8.219e-05,2]
[347726399,1736082648925,-500.0,8.219e-05,2]
[347726400,1736082648935,-500.0,8.219e-05,2]
[347726401,1736082648945,-500.0,8.219e-05,2]
[347726402,1736082648955,-500.0,8.219e-05,2]
[347726403,1736082648965,-1843.41,8.219e-05,2]
[347726404,1736082648974,-500.0,8.219e-05,2]
[347726405,1736082648984,-500.0,8.219e-05,2]
[347726406,1736082648994,-500.0,8.219e-05,2]
[347726407,1736082649004,-1142.63,8.219e-05,2]
[347726408,1736082649014,-500.0,8.219e-05,2]
[347726409,1736082649024,-500.0,8.219e-05,2]
[347726410,1736082649033,-500.0,8.219e-05,2]
[347726411,1736082649043,-500.0,8.219e-05,2]
[347726412,1736082649052,-781.64,8.219e-05,2]
[347726413,1736082649062,-995.05,8.219e-05,2]
[347726414,1736082649071,-633.15,8.219e-05,2]
[347726415,1736082649082,-500.0,8.219e-05,2]
[347726416,1736082649091,-1955.7,8.219e-05,2]
[347726417,1736082649101,-500.0,8.219e-05,2]
[347726418,1736082649110,-1008.25,8.219e-05,2]
[347726419,1736082649120,-2199.83,8.219e-05,2]
[347726420,1736082649129,-1560.57,8.219e-05,2]
[347726421,1736082649138,-830.3,8.219e-05,2]
[347726422,1736082649148,-985.19,8.219e-05,2]
[347726423,1736082649157,-710.26,8.219e-05,2]
[347726424,1736082649167,-3768.53,8.219e-05,2]
[347726425,1736082649176,-3768.53,8.219e-05,2]
[347726426,1736082649186,-500.0,8.219e-05,2]
[347726427,1736082649195,-500.0,8.219e-05,2]
[347726428,1736082649204,-500.0,8.219e-05,2]
[347726429,1736082649214,-759.76,8.219e-05,2]
[347726430,1736082649223,-500.0,8.219e-05,2]
[347726431,1736082649233,-1038.15,8.219e-05,2]
[347726432,1736082649242,-500.0,8.219e-05,2]
[347726433,1736082649252,-500.0,8.219e-05,2]
[347726434,1736082649261,-500.0,8.219e-05,2]
[347726435,1736082649270,-3426.4,8.219e-05,2]
[347726436,1736082649280,-967.79,8.219e-05,2]
[347726437,1736082649289,-1579.6,8.219e-05,2]
[347726438,1736082649299,-672.25,8.219e-05,2]
[347726439,1736082649308,-590.01,8.219e-05,2]
[347726440,1736082649317,-604.53,8.219e-05,2]
[347726441,1736082649329,-661.94,8.219e-05,2]
[347726442,1736082649339,-2614.97,8.219e-05,2]
[347726443,1736082649348,-2001.73,8.219e-05,2]
[347726444,1736082649358,-2747.31,8.219e-05,2]
[347726445,1736082649367,-500.0,8.219e-05,2]
[347726446,1736082649377,-500.0,8.219e-05,2]
[347726447,1736082649387,-1629.21,8.219e-05,2]
[347726448,1736082649396,-500.0,8.219e-05,2]
[347726449,1736082649408,-500.0,8.219e-05,2]
[347726450,1736082649418,-791.03,8.219e-05,2]
[347726451,1736082649427,-500.0,8.219e-05,2]
[347726452,1736082649437,-706.4,8.219e-05,2]
[347726453,1736082649447,-1066.24,8.219e-05,2]
[347726454,1736082649577,-500.0,8.219e-05,2]
[347726455,1736082649587,-500.0,8.219e-05,2]
[347726456,1736082649596,-1279.71,8.219e-05,2]
[347726457,1736082649606,-3790.41,8.219e-05,2]
[347726458,1736082649615,-500.0,8.219e-05,2]
[347726459,1736082649626,-2428.32,8.219e-05,2]
[347726460,1736082649636,-10917.0,8.219e-05,2]
[347726461,1736082649646,-250.0,8.219e-05,2]
[347726462,1736082649656,-1000.0,8.219e-05,2]
[347726463,1736082649665,-500.0,8.219e-05,2]
[347726464,1736082649675,-162.97,8.219e-05,2]
[347726465,1736082649684,-1337.65,8.219e-05,2]
[347726466,1736082649694,-150.0,8.274e-05,2]
[347726467,1736082649703,-150.0,8.274e-05,2]
[347726468,1736082649713,-150.0,8.274e-05,2]
[347726469,1736082649722,-150.0,8.274e-05,2]
[347726470,1736082649732,-500.0,8.287e-05,2]
[347726471,1736082649743,-529508.35890647,8.288e-05,2]
[347726472,1736082650955,-297.59153137,8.219e-05,2]
[347726473,1736082650967,-465.89335828,8.219e-05,2]
[347726474,1736082650978,-50.51511035,8.219e-05,2]
[347726475,1736082650987,-3202.69021345,8.288e-05,2]
[347726476,1736082651014,-3921.81580609,8.288e-05,2]
[347726477,1736082651025,-85306.0943926,8.288e-05,2]
[347726478,1736082651036,-218198.89412947,8.288e-05,2]
[347726479,1736082651047,-2018.50135938,8.288e-05,2]
[347726480,1736082651058,-1120.07727721,8.288e-05,2]
[347726481,1736082651399,-2138.6000001,8.288e-05,2]
[347726482,1736082790307,-10000.0,9.999e-05,4]
[347726484,1736082866687,245893.12,0.00021918,120]
[347726485,1736083089842,-563.54,8.219e-05,7]
[347726526,1736083832508,-300.0,7.384e-05,2]
[347726528,1736083832518,-2237.55774827,7.385e-05,2]
[347726531,1736083832529,-387.02289021,7.385e-05,2]
[347726533,1736083832547,-4773.73589823,7.385e-05,2]
[347726857,1736083837991,-2382.64,7.356e-05,2]
[347726858,1736083838001,-570.349,7.385e-05,2]
[347726859,1736083838013,-3906.47492057,7.385e-05,2]
[347726860,1736083838035,-12024.85954272,7.385e-05,2]
[347726861,1736083838044,-250.0,7.386e-05,2]
[347726862,1736083838053,-150.0,7.447e-05,2]
[347726863,1736083838063,-150.0,7.447e-05,2]
[347726864,1736083838072,-150.0,7.447e-05,2]
[347726865,1736083838081,-150.0,7.447e-05,2]
[347726866,1736083838091,-250.0,7.743e-05,2]
[347726867,1736083838103,-515.08,7.751e-05,2]
[347726868,1736083838113,-398.76,7.784e-05,2]
[347726869,1736083838122,-150.0,7.86e-05,2]
[347726870,1736083838132,-5697.95,7.874e-05,2]
[347726871,1736083838143,-620.483514,7.999e-05,2]
[347726872,1736083838152,-3533.51108499,8e-05,2]
[347726873,1736083838163,-10544.49279954,8e-05,2]
[347726874,1736083838176,-27573.81609045,8e-05,2]
[347726875,1736083838196,-6245.79710252,8e-05,2]
[347726876,1736083838208,-10933.19124714,8e-05,2]
[347726877,1736083838230,-969.9861,8e-05,2]
[347726878,1736083838241,-446.79742223,8e-05,2]
[347726879,1736083838277,-268.15593535,8e-05,2]
[347726881,1736083838300,-2808.88933993,8e-05,2]
[347726883,1736083838312,-5944.65057397,8e-05,2]
[347726902,1736083840013,-944.4,8e-05,2]
[347726908,1736083840514,-3941.71009122,8e-05,2]
[347726909,1736083840526,-970.65395577,8e-05,2]
[347726910,1736083840538,-85091.90891447,8e-05,2]
[347726911,1736083840549,-571.4487318,8e-05,2]
[347726912,1736083840570,-16017.56347792,8e-05,2]
[347726918,1736083843202,-2035.56223608,8e-05,2]
[347726919,1736083843262,-95832.35486429,8e-05,2]
[347726920,1736083843275,-136641.43825497,8e-05,2]
[347726921,1736083843393,-1075.4000001,8e-05,2]
[347726927,1736083845970,-1899.06,8e-05,2]
[347726928,1736083846146,-10846.02636804,8e-05,2]
[347726933,1736084017835,10000.0,0.00022,120]
[347726934,1736084033886,10000.0,0.00022,120]
[347726935,1736084048890,10000.0,0.00022,120]
[347726936,1736084063708,10000.0,0.00022,120]
[347726937,1736084071532,-9800.0,8e-05,12]
[347726938,1736084077599,10000.0,0.00022,120]
[347726939,1736084084451,-9800.0,8e-05,11]
[347726940,1736084090642,10000.0,0.00022,120]
[347726941,1736084096411,-9800.0,8e-05,10]
[347726942,1736084103947,10000.0,0.00022,120]
[347726943,1736084105973,-9800.0,8e-05,9]
[347726944,1736084105995,-9800.0,8e-05,8]
[347726945,1736084106016,-9800.0,8e-05,7]
[347726948,1736084116971,10000.0,0.00022,120]
[347726949,1736084129895,10000.0,0.00022,120]
[347726950,1736084142189,10000.0,0.00022,120]
[347726951,1736084155577,10000.0,0.00022,120]
[347726955,1736084168559,10000.0,0.00022,120]
[347726958,1736084275695,-9800.0,8e-05,6]
[347726959,1736084403830,1128.29016429,0.00022,120]
[347726960,1736084404392,203.44360263,0.00022,120]
[347726962,1736084569239,10000.0,0.00022,120]
[347726963,1736084582254,10000.0,0.00022,120]
[347726964,1736084595236,10000.0,0.00022,120]
[347726965,1736084608475,10000.0,0.00022,120]
[347726966,1736084634776,8122.1,0.00022,120]
[347726967,1736084724625,250.0,6.818e-05,2]
[347726968,1736084780583,167.2,7.016e-05,2]
[347726969,1736084839166,163.83,6.823e-05,2]
[347726980,1736084964436,500.0,0.0002,120]
[347726985,1736085032160,-300.0,7.153e-05,2]
[347726986,1736085032169,-3323.29722259,7.154e-05,2]
[347726989,1736085032639,-20576.70277741,7.154e-05,2]
[347726990,1736085032649,-1362.71,7.263e-05,2]
[347726991,1736085032660,-660.3787706,7.263e-05,2]
[347726992,1736085032669,-150.0,7.447e-05,2]
[347726993,1736085032679,-150.0,7.447e-05,2]
[347726995,1736085032688,-150.0,7.447e-05,2]
[347726997,1736085032697,-150.0,7.447e-05,2]
[347726999,1736085032706,-250.0,7.472e-05,2]
[347727001,1736085032715,-150.0,7.488e-05,2]
[347727003,1736085032724,-150.0,7.529e-05,2]
[347727005,1736085032733,-150.0,7.534e-05,2]
[347727007,1736085032743,-3096.145,7.569e-05,2]
[347727010,1736085032753,-179.744,7.569e-05,2]
[347727012,1736085032763,-1943.1184,7.569e-05,2]
[347727015,1736085032773,-150.0,7.571e-05,2]
[347727017,1736085032782,-150.0,7.584e-05,2]
[347727019,1736085032791,-150.0,7.612e-05,2]
[347727021,1736085032801,-150.0,7.612e-05,2]
[347727023,1736085032810,-150.0,7.653e-05,2]
[347727025,1736085032819,-204.8118,7.662e-05,2]
[347727027,1736085032828,-33816.96,7.669e-05,2]
[347727029,1736085032838,-453.50323459,7.669e-05,2]
[347727033,1736085032873,-424.88289712,7.669e-05,2]
[347727036,1736085032885,-3903.08696829,7.669e-05,2]
[347727038,1736085032894,-5808.16559645,7.685e-05,2]
[347727040,1736085032905,-7290.471,7.685e-05,2]
[347727044,1736085032928,-36673.36340355,7.685e-05,2]
[347727045,1736085032938,-150.0,7.695e-05,2]
[347727047,1736085032947,-150.0,7.722e-05,2]
[347727050,1736085032956,-150.0,7.736e-05,2]
[347727052,1736085032965,-150.0,7.778e-05,2]
[347727054,1736085032974,-150.0,7.778e-05,2]
[347727055,1736085032983,-500.0,7.808e-05,2]
[347727058,1736085032994,-168.14,7.813e-05,2]
[347727059,1736085033002,-150.0,7.819e-05,2]
[347727061,1736085033011,-150.0,7.86e-05,2]
[347727063,1736085033022,-150.0,7.86e-05,2]
[347727066,1736085033032,-420.0,7.868e-05,2]
[347727068,1736085033042,-7573.7499,7.9e-05,2]
[347727069,1736085033052,-11175.6196,7.9e-05,2]
[347727071,1736085033061,-4949.75,7.9e-05,2]
[347727073,1736085033071,-500.0,7.9e-05,2]
[347727075,1736085033081,-150.0,7.902e-05,2]
[347727078,1736085033092,-150.0,7.943e-05,2]
[347727080,1736085033101,-150.0,7.943e-05,2]
[347727082,1736085033111,-771.32,7.945e-05,2]
[347727084,1736085033120,-500.0,7.945e-05,2]
[347727086,1736085033129,-150.0,7.984e-05,2]
[347727088,1736085033138,-150.0,7.998e-05,2]
[347727090,1736085033148,-1238.32798222,7.999e-05,2]
[347727091,1736085033157,-450.98203914,7.999e-05,2]
[347727094,1736085033167,-500.0,7.999e-05,2]
[347727096,1736085033177,-500.0,7.999e-05,2]
[347727127,1736085033470,-500.0,7.999e-05,2]
[347727129,1736085033480,-300.30992505,7.999e-05,2]
[347727131,1736085033490,-500.0,7.999e-05,2]
[347727133,1736085033500,-500.0,7.999e-05,2]
[347727135,1736085033509,-500.0,7.999e-05,2]
[347727137,1736085033518,-500.0,7.999e-05,2]
[347727139,1736085033527,-500.0,7.999e-05,2]
[347727141,1736085033536,-503.81658871,7.999e-05,2]
[347727143,1736085033546,-500.0,7.999e-05,2]
[347727145,1736085033555,-500.0,7.999e-05,2]
[347727147,1736085033565,-500.0,7.999e-05,2]
[347727149,1736085033575,-528.48766982,7.999e-05,2]
[347727151,1736085033584,-364.32465712,7.999e-05,2]
[347727153,1736085033594,-502.75653172,7.999e-05,2]
[347727155,1736085033604,-500.0,7.999e-05,2]
[347727157,1736085033613,-500.0,7.999e-05,2]
[347727159,1736085033623,-500.0,7.999e-05,2]
[347727161,1736085033632,-640.0,7.999e-05,2]
[347727163,1736085033642,-500.0,7.999e-05,2]
[347727165,1736085033652,-500.0,7.999e-05,2]
[347727167,1736085033661,-500.0,7.999e-05,2]
[347727169,1736085033671,-500.0,7.999e-05,2]
[347727171,1736085033681,-500.0,7.999e-05,2]
[347727173,1736085033691,-167.93501738,7.999e-05,2]
[347727175,1736085033700,-500.0,7.999e-05,2]
[347727177,1736085033710,-350.0,7.999e-05,2]
[347727179,1736085033719,-500.0,7.999e-05,2]
[347727181,1736085033729,-500.0,7.999e-05,2]
[347727183,1736085033739,-205.51098639,7.999e-05,2]
[347727185,1736085033749,-15431.88750162,8e-05,2]
[347727188,1736085033771,-58991.37220327,8e-05,2]
[347727191,1736085033782,-395.4938102,8e-05,2]
[347727201,1736085033870,-47349.6790397,8e-05,2]
[347727203,1736085033883,-4965.893,8e-05,2]
[347727205,1736085033894,-1827.20936755,8e-05,2]
[347727207,1736085033908,-412.40818989,8e-05,2]
[347727213,1736085033956,-3003.53106603,8e-05,2]
[347727216,1736085033967,-5698.70911555,8e-05,2]
[347727360,1736085038125,-2477.2161762,8e-05,2]
[347727361,1736085038137,-853.93639127,8e-05,2]
[347727362,1736085038148,-3333.64309191,8e-05,2]
[347727363,1736085038160,-2503.9412388,8e-05,2]
[347727364,1736085038177,-1059.1064544,8e-05,2]
[347727365,1736085038200,-385.36424049,8e-05,2]
[347727366,1736085038212,-865.69,8e-05,2]
[347727367,1736085038223,-468.3,8e-05,2]
[347727368,1736085038234,-10892.39908829,8e-05,2]
[347727369,1736085038245,-760.07716815,8e-05,2]
[347727370,1736085038256,-965.47893929,8e-05,2]
[347727371,1736085038273,-611.96207322,8e-05,2]
[347727372,1736085038284,-32726.87380082,8e-05,2]
[347727373,1736085038299,-30448.42189799,8e-05,2]
[347727374,1736085038366,-8013.03588428,8e-05,2]
[347727375,1736085038378,-28817.57440624,8e-05,2]
[347727376,1736085038390,-10811.00304557,8e-05,2]
[347727377,1736085038449,-1450.28619521,8e-05,2]
[347727378,1736085038460,-58487.2145124,8e-05,2]
[347727379,1736085038472,-5216.32132093,8e-05,2]
[347727382,1736085040154,-770.57157677,8e-05,2]
[347727383,1736085040166,-33643.89535357,8e-05,2]
[347727384,1736085040177,-5666.5359537,8e-05,2]
[347727385,1736085040446,-947.72946,8e-05,2]
[347727386,1736085040458,-1347.0,8e-05,2]
[347727387,1736085040469,-3257.921871,8e-05,2]
[347727388,1736085040480,-896.82497611,8e-05,2]
[347727389,1736085040491,-383.57266039,8e-05,2]
[347727390,1736085040504,-5620.00299894,8e-05,2]
[347727391,1736085040515,-294.0,8e-05,2]
[347727392,1736085040528,-39643.23435944,8e-05,2]
[347727393,1736085040561,-299.397,8e-05,2]
[347727394,1736085040571,-1730.84596,8e-05,2]
[347727395,1736085040583,-7663.15022975,8e-05,2]
[347727397,1736085040594,-1699.68651401,8e-05,2]
[347727398,1736085040612,-3984.44475724,8e-05,2]
[347727399,1736085040624,-1428.39757227,8e-05,2]
[347727400,1736085040650,-851.66209195,8e-05,2]
[347727401,1736085040661,-11819.39745183,8e-05,2]
[347727402,1736085040672,-331.07,8e-05,2]
[347727403,1736085040695,-2964.84107012,8e-05,2]
[347727404,1736085040758,-962.70634916,8e-05,2]
[347727405,1736085040769,-2446.67393065,8e-05,2]
[347727406,1736085040791,-72217.5091891,8e-05,2]
[347727407,1736085040800,-9800.0,8e-05,5]
[347727408,1736085040809,-9800.0,8e-05,4]
[347727409,1736085040819,-6081.0,8e-05,3]
[347727410,1736085040829,-26556.20844947,8e-05,2]
[347727411,1736085040838,-150.0,8.026e-05,2]
[347727412,1736085040847,-500.0,8.055e-05,2]
[347727413,1736085040856,-150.0,8.067e-05,2]
[347727414,1736085040864,-1942.47998981,8.088e-05,2]
[347727415,1736085040874,-3935.316997,8.1e-05,2]
[347727416,1736085040883,-150.0,8.108e-05,2]
[347727417,1736085040893,-150.0,8.108e-05,2]
[347727418,1736085040902,-23347.22864302,8.119e-05,2]
[347727419,1736085040911,-150.0,8.136e-05,2]
[347727420,1736085040920,-150.0,8.15e-05,2]
[347727421,1736085040930,-1362.71,8.171e-05,2]
[347727422,1736085040939,-46396.56428264,8.188e-05,2]
[347727423,1736085040948,-150.0,8.191e-05,2]
[347727424,1736085040958,-250000.0,8.218e-05,2]
[347727425,1736085040967,-1142.81038424,8.218e-05,2]
[347727426,1736085040976,-1238.32798222,8.218e-05,2]
[347727427,1736085040986,-1021.682119,8.219e-05,2]
[347727428,1736085040995,-500.0,8.219e-05,2]
[347727429,1736085041005,-500.0,8.219e-05,2]
[347727430,1736085041014,-500.0,8.219e-05,2]
[347727431,1736085041024,-500.0,8.219e-05,2]
[347727432,1736085041033,-500.0,8.219e-05,2]
[347727433,1736085041044,-500.0,8.219e-05,2]
[347727434,1736085041054,-500.0,8.219e-05,2]
[347727435,1736085041063,-154.499767,8.219e-05,2]
[347727436,1736085041072,-160.352866,8.219e-05,2]
[347727437,1736085041082,-500.0,8.219e-05,2]
[347727438,1736085041092,-500.0,8.219e-05,2]
[347727439,1736085041101,-500.0,8.219e-05,2]
[347727440,1736085041111,-500.0,8.219e-05,2]
[347727441,1736085041120,-500.0,8.219e-05,2]
[347727442,1736085041130,-500.0,8.219e-05,2]
[347727443,1736085041139,-500.0,8.219e-05,2]
[347727444,1736085041149,-500.0,8.219e-05,2]
[347727445,1736085041158,-500.0,8.219e-05,2]
[347727446,1736085041167,-500.0,8.219e-05,2]
[347727447,1736085041179,-500.0,8.219e-05,2]
[347727448,1736085041190,-500.0,8.219e-05,2]
[347727449,1736085041201,-500.0,8.219e-05,2]
[347727450,1736085041213,-518.58,8.219e-05,2]
[347727451,1736085041222,-335.66198511,8.219e-05,2]
[347727452,1736085041232,-1787.58,8.219e-05,2]
[347727453,1736085041241,-500.0,8.219e-05,2]
[347727454,1736085041252,-500.0,8.219e-05,2]
[347727455,1736085041261,-500.0,8.219e-05,2]
[347727456,1736085041271,-202.97336836,8.219e-05,2]
[347727457,1736085041281,-500.0,8.219e-05,2]
[347727458,1736085041291,-849.96,8.219e-05,2]
[347727459,1736085041300,-3299.77,8.219e-05,2]
[347727460,1736085041309,-500.0,8.219e-05,2]
[347727461,1736085041319,-336.45,8.219e-05,2]
[347727462,1736085041328,-525.59,8.219e-05,2]
[347727463,1736085041337,-500.0,8.219e-05,2]
[347727464,1736085041346,-500.0,8.219e-05,2]
[347727465,1736085041356,-500.0,8.219e-05,2]
[347727466,1736085041365,-622.77,8.219e-05,2]
[347727467,1736085041374,-500.0,8.219e-05,2]
[347727468,1736085041383,-500.0,8.219e-05,2]
[347727469,1736085041394,-641.67,8.219e-05,2]
[347727470,1736085041403,-500.0,8.219e-05,2]
[347727471,1736085041412,-500.0,8.219e-05,2]
[347727472,1736085041422,-500.0,8.219e-05,2]
[347727473,1736085041431,-500.0,8.219e-05,2]
[347727474,1736085041441,-1874.21,8.219e-05,2]
[347727475,1736085041450,-500.0,8.219e-05,2]
[347727476,1736085041459,-816.82,8.219e-05,2]
[347727477,1736085041469,-500.0,8.219e-05,2]
[347727478,1736085041478,-500.0,8.219e-05,2]
[347727479,1736085041487,-500.0,8.219e-05,2]
[347727480,1736085041496,-500.0,8.219e-05,2]
[347727481,1736085041505,-500.0,8.219e-05,2]
[347727482,1736085041515,-500.0,8.219e-05,2]
[347727483,1736085041524,-500.0,8.219e-05,2]
[347727484,1736085041533,-500.0,8.219e-05,2]
[347727485,1736085041543,-500.0,8.219e-05,2]
[347727486,1736085041552,-500.0,8.219e-05,2]
[347727487,1736085041561,-500.0,8.219e-05,2]
[347727488,1736085041571,-500.0,8.219e-05,2]
[347727489,1736085041581,-500.0,8.219e-05,2]
[347727490,1736085041590,-500.0,8.219e-05,2]
[347727491,1736085041600,-500.0,8.219e-05,2]
[347727492,1736085041609,-500.0,8.219e-05,2]
[347727493,1736085041619,-500.0,8.219e-05,2]
[347727494,1736085041628,-500.0,8.219e-05,2]
[347727495,1736085041638,-716.09,8.219e-05,2]
[347727496,1736085041648,-500.0,8.219e-05,2]
[347727497,1736085041658,-2461.85,8.219e-05,2]
[347727498,1736085041667,-500.0,8.219e-05,2]
[347727499,1736085041676,-656.21,8.219e-05,2]
[347727500,1736085041686,-500.0,8.219e-05,2]
[347727501,1736085041695,-500.0,8.219e-05,2]
[347727502,1736085041705,-500.0,8.219e-05,2]
[347727503,1736085041714,-500.0,8.219e-05,2]
[347727504,1736085041723,-500.0,8.219e-05,2]
[347727505,1736085041733,-500.0,8.219e-05,2]
[347727506,1736085041743,-155.826196,8.219e-05,2]
[347727507,1736085041752,-500.0,8.219e-05,2]
[347727508,1736085041761,-515.37,8.219e-05,2]
[347727509,1736085041770,-500.0,8.219e-05,2]
[347727510,1736085041779,-500.0,8.219e-05,2]
[347727511,1736085041789,-523.05,8.219e-05,2]
[347727512,1736085041799,-500.0,8.219e-05,2]
[347727513,1736085041808,-156.68399,8.219e-05,2]
[347727514,1736085041817,-500.0,8.219e-05,2]
[347727515,1736085041827,-500.0,8.219e-05,2]
[347727516,1736085041836,-500.0,8.219e-05,2]
[347727517,1736085041845,-609.37,8.219e-05,2]
[347727518,1736085041855,-769.24,8.219e-05,2]
[347727519,1736085041863,-3076.01,8.219e-05,2]
[347727520,1736085041872,-500.0,8.219e-05,2]
[347727521,1736085041882,-500.37059342,8.219e-05,2]
[347727522,1736085041892,-500.0,8.219e-05,2]
[347727523,1736085041903,-500.0,8.219e-05,2]
[347727524,1736085041913,-500.0,8.219e-05,2]
[347727525,1736085041923,-500.0,8.219e-05,2]
[347727526,1736085041933,-500.0,8.219e-05,2]
[347727527,1736085041943,-500.0,8.219e-05,2]
[347727528,1736085041952,-500.0,8.219e-05,2]
[347727529,1736085041961,-717.26,8.219e-05,2]
[347727530,1736085041972,-500.0,8.219e-05,2]
[347727531,1736085041982,-500.0,8.219e-05,2]
[347727532,1736085041992,-500.0,8.219e-05,2]
[347727533,1736085042003,-500.0,8.219e-05,2]
[347727534,1736085042013,-500.0,8.219e-05,2]
[347727535,1736085042024,-500.13202654,8.219e-05,2]
[347727536,1736085042034,-156.287958,8.219e-05,2]
[347727537,1736085042044,-491.50587985,8.219e-05,2]
[347727538,1736085042055,-500.0,8.219e-05,2]
[347727539,1736085042064,-500.0,8.219e-05,2]
[347727540,1736085042074,-500.0,8.219e-05,2]
[347727541,1736085042084,-500.0,8.219e-05,2]
[347727542,1736085042093,-500.0,8.219e-05,2]
[347727543,1736085042103,-500.0,8.219e-05,2]
[347727544,1736085042113,-153.671496,8.219e-05,2]
[347727545,1736085042123,-500.0,8.219e-05,2]